[Event "57th Biel Festival ATO 2024"]
[Site "Biel"]
[Date "2024.07.19"]
[Round "4.9"]
[White "Jordan, Christina"]
[Black "Kalbermatter, Philipp"]
[Result "0-1"]
[ECO "C10"]
[WhiteElo "1749"]
[BlackElo "1912"]
[Annotator "ChessBase"]
[PlyCount "84"]
[EventDate "2024.07.03"]
[EventType "swiss"]
[EventCountry "SUI"]
[SourceTitle "playchess.com"]
[Source "ChessBase"]
[SourceQuality "1"]
[TimeControl "40/5400+30:1800+30"]

1. e4 {[%emt 0:00:05]} e6 {[%emt 0:00:18]} 2. d4 {[%emt 0:00:06]} d5 {[%emt 0:00:27]} 3. Nc3 {[%emt 0:00:08]} Nc6 {[%emt 0:00:52]} 4. e5 {[%emt 0:00:13]} f6 {[%emt 0:01:08]} 5. Bb5 {[%emt 0:00:21]} Bd7 {[%emt 0:02:52]} 6. Nf3 {[%emt 0:01:05]} Qe7 {[%emt 0:15:27]} 7. O-O {[%emt 0:02:03]} Qf7 {[%emt 0:02:38]} 8. Rb1 {[%emt 0:01:07]} Nge7 {[%emt 0:05:51]} 9. b4 {[%emt 0:03:12]} Ng6 {[%emt 0:05:24]} 10. Bxc6 {[%emt 0:01:30]} Bxc6 {[%emt 0:00:47]} 11. b5 {[%emt 0:00:32]} Bd7 {[%emt 0:00:11]} 12. h4 {[%emt 0:00:47]} Be7 {[%emt 0:05:39]} 13. Re1 {[%emt 0:08:14]} f5 {[%emt 0:04:55]} 14. h5 {[%emt 0:10:49]} Nf8 {[%emt 0:00:49]} 15. Ng5 {[%emt 0:04:15]} Bxg5 {[%emt 0:00:47]} 16. Bxg5 {[%emt 0:00:05]} h6 {[%emt 0:00:58]} 17. Bd2 {[%emt 0:04:00]} g6 {[%emt 0:04:39]} 18. hxg6 {[%emt 0:03:29]} Nxg6 {[%emt 0:03:34]} 19. Re3 {[%emt 0:03:48]} O-O-O {[%emt 0:07:27]} 20. b6 {[%emt 0:04:54]} axb6 {[%emt 0:01:17]} 21. Nb5 {[%emt 0:03:39]} Bxb5 {[%emt 0:02:27]} 22. Rxb5 {[%emt 0:00:15]} Rdg8 {[%emt 0:01:21]} 23. Rh3 {[%emt 0:07:52]} f4 {[%emt 0:04:28]} 24. Qf3 {[%emt 0:06:56]} Qe7 {[%emt 0:01:24]} 25. Bb4 {[%emt 0:07:16]} Qg5 {[%emt 0:03:11]} 26. Qd1 {[%emt 0:08:02]} Nh4 {[%emt 0:01:49]} 27. g3 {[%emt 0:04:40]} fxg3 {[%emt 0:02:31]} 28. Rxg3 {[%emt 0:01:14]} Qf4 {[%emt 0:00:59]} 29. Qd3 {[%emt 0:08:02]} Rxg3+ {[%emt 0:00:52]} 30. fxg3 {[%emt 0:00:06]} Qxd4+ {[%emt 0:01:40]} 31. Kh1 {[%emt 0:02:54]} Qxd3 {[%emt 0:00:51]} 32. cxd3 {[%emt 0:00:05]} Nf5 {[%emt 0:03:49]} 33. Be1 {[%emt 0:00:31]} Rg8 {[%emt 0:00:44]} 34. Kg2 {[%emt 0:01:01]} Nd4 {[%emt 0:01:33]} 35. Rb2 {[%emt 0:01:17]} Nc6 {[%emt 0:02:17]} 36. Re2 {[%emt 0:01:16]} Rg5 {[%emt 0:00:49]} 37. Bd2 {[%emt 0:00:32]} Rxe5 {[%emt 0:00:38]} 38. Rf2 {[%emt 0:00:46]} Rf5 {[%emt 0:01:05]} 39. Re2 {[%emt 0:01:00]} Nd4 {[%emt 0:01:35]} 40. Re3 {[%emt 0:01:02]} h5 {[%emt 0:02:02]} 41. Bc3 {[%emt 0:02:09]} e5 {[%emt 0:02:10]} 42. Re1 {[%emt 0:03:21]} Kd7 {[%emt 0:02:13]} 0-1

[Event "57th Biel Festival ATO 2024"]
[Site "Biel"]
[Date "2024.07.19"]
[Round "4.10"]
[White "Primbetova, Raikhan"]
[Black "Kessler, Meinrad"]
[Result "1-0"]
[ECO "A10"]
[WhiteElo "1534"]
[BlackElo "1874"]
[Annotator "NA RC"]
[PlyCount "101"]
[EventDate "2024.07.03"]
[EventType "swiss"]
[EventCountry "SUI"]
[SourceTitle "playchess.com"]
[Source "ChessBase"]
[SourceQuality "1"]
[TimeControl "40/5400+30:1800+30"]

1. c4 {[%emt 0:00:10]} b6 {[%emt 0:00:14]} 2. Nc3 {[%emt 0:01:49]} Bb7 {[%emt 0:00:25]} 3. d3 {[%emt 0:00:44]} e6 {[%emt 0:02:18]} 4. Nf3 {[%emt 0:01:14]} Bb4 {[%emt 0:02:24]} 5. a3 {[%emt 0:00:52]} Bxc3+ {[%emt 0:00:40]} 6. bxc3 {[%emt 0:00:04]} c5 {[%emt 0:01:09]} 7. g3 {[%emt 0:01:44]} Bxf3 {[%emt 0:06:22]} 8. exf3 {[%emt 0:00:08]} f5 {[%emt 0:00:29]} 9. Bg2 {[%emt 0:01:17]} Ne7 {[%emt 0:03:03]} 10. f4 {[%emt 0:03:18]} Nbc6 {[%emt 0:03:50]} 11. O-O {[%emt 0:07:24]} O-O {[%emt 0:00:20]} 12. Re1 {[%emt 0:01:52]} Rc8 {[%emt 0:03:31]} 13. Bb2 {[%emt 0:25:10]} Qc7 {[%emt 0:13:51]} 14. Qe2 {[%emt 0:04:49]} Nd8 {[%emt 0:13:37]} 15. Rac1 {[%emt 0:06:55]} Nec6 {[%emt 0:11:23]} 16. a4 {[%emt 0:12:23]} Re8 {[%emt 0:06:54]} 17. d4 {[%emt 0:03:07]} Ne7 {[%emt 0:09:20]} 18. d5 {[%emt 0:01:07]} exd5 {[%emt 0:08:37]} 19. cxd5 {[%emt 0:00:11]} c4 {[%emt 0:01:11]} 20. Rcd1 {[%emt 0:03:48]} d6 {[%emt 0:00:27]} 21. Ba3 {[%emt 0:03:54]} Qd7 {[%emt 0:00:42]} 22. Rd4 {[%emt 0:01:11]} Nf7 {[%emt 0:04:01]} 23. Rxc4 {[%emt 0:00:27]} Rxc4 {[%emt 0:00:15]} 24. Qxc4 {[%emt 0:00:04]} Kf8 {[%emt 0:02:02]} 25. Qb5 {[%emt 0:02:57]} Qxb5 {[%emt 0:01:02]} 26. axb5 {[%emt 0:00:04]} Rc8 {[%emt 0:00:09]} 27. Rc1 {[%emt 0:00:19]} Ke8 {[%emt 0:01:12]} 28. c4 {[%emt 0:01:06]} Kd7 {[%emt 0:00:22]} 29. Bf1 {[%emt 0:01:50]} Nd8 {[%emt 0:00:59]} 30. Ra1 {[%emt 0:02:02]} Rc7 {[%emt 0:00:44]} 31. Bb2 {[%emt 0:01:02]} g6 {[%emt 0:00:09]} 32. Bd3 {[%emt 0:03:56]} Nc8 {[%emt 0:01:16]} 33. Bc3 {[%emt 0:01:12]} Nb7 {[%emt 0:00:07]} 34. Bb4 {[%emt 0:00:21]} Nc5 {[%emt 0:00:24]} 35. Bxc5 {[%emt 0:00:07]} bxc5 {[%emt 0:00:16]} 36. f3 {[%emt 0:00:45]} Ke7 {[%emt 0:01:29]} 37. g4 {[%emt 0:02:49]} Kf6 {[%emt 0:00:36]} 38. Re1 {[%emt 0:02:01]} fxg4 {[%emt 0:01:20]} 39. Re6+ {[%emt 0:00:35]} Kf7 {[%emt 0:00:48]} 40. fxg4 {[%emt 0:00:05]} Re7 {[%emt 0:00:44]} 41. Rxe7+ {[%emt 0:35:36]} Kxe7 {[%emt 0:30:16]} 42. Kf2 {[%emt 0:00:20]} Nb6 {[%emt 0:00:00]} 43. Ke3 {[%emt 0:00:00]} Nd7 {[%emt 0:00:00]} 44. Kf3 {[%emt 0:00:00]} Kf7 {[%emt 0:00:00]} 45. h4 {[%emt 0:00:00]} Kg7 {[%emt 0:00:00]} 46. g5 {[%emt 0:00:00]} Kf7 {[%emt 0:00:00]} 47. Kg4 {[%emt 0:00:00]} Kg7 {[%emt 0:00:00]} 48. h5 {[%emt 0:00:00]} Kf7 {[%emt 0:00:00]} 49. h6 {[%emt 0:00:00]} Kf8 {[%emt 0:00:00]} 50. Kf3 {[%emt 0:00:00]} Kf7 {[%emt 0:00:00]} 51. Ke3 {[%emt 0:00:00]} 1-0

[Event "57th Biel Festival ATO 2024"]
[Site "Biel"]
[Date "2024.07.19"]
[Round "4.11"]
[White "Paholok, Igor"]
[Black "Wiesmann, Dominique"]
[Result "0-1"]
[ECO "D05"]
[WhiteElo "1801"]
[BlackElo "1963"]
[Annotator "RC"]
[PlyCount "66"]
[EventDate "2024.07.03"]
[EventType "swiss"]
[EventCountry "SUI"]
[SourceTitle "playchess.com"]
[Source "ChessBase"]
[SourceQuality "1"]
[TimeControl "40/5400+30:1800+30"]

1. d4 {[%emt 0:21:42]} Nf6 {[%emt 0:00:12]} 2. Nf3 {[%emt 0:00:15]} d5 {[%emt 0:00:46]} 3. e3 {[%emt 0:00:21]} c5 {[%emt 0:00:27]} 4. c3 {[%emt 0:00:09]} e6 {[%emt 0:00:44]} 5. Bd3 {[%emt 0:00:09]} Nbd7 {[%emt 0:00:43]} 6. Nbd2 {[%emt 0:02:54]} b6 {[%emt 0:00:18]} 7. e4 {[%emt 0:00:23]} cxd4 {[%emt 0:03:22]} 8. e5 {[%emt 0:01:09]} dxc3 {[%emt 0:02:12]} 9. bxc3 {[%emt 0:03:48]} Qc7 {[%emt 0:02:44]} 10. O-O {[%emt 0:05:00]} Nxe5 {[%emt 0:07:13]} 11. Nxe5 {[%emt 0:00:21]} Qxe5 {[%emt 0:00:18]} 12. Nf3 {[%emt 0:02:50]} Qc7 {[%emt 0:11:20]} 13. Bg5 {[%emt 0:01:36]} Nd7 {[%emt 0:06:02]} 14. Re1 {[%emt 0:02:46]} Bd6 {[%emt 0:01:49]} 15. Nd4 {[%emt 0:03:43]} Nc5 {[%emt 0:04:29]} 16. Nf5 {[%emt 0:09:08]} Bxh2+ {[%emt 0:05:46]} 17. Kh1 {[%emt 0:00:40]} Nxd3 {[%emt 0:11:14]} 18. Qxd3 {[%emt 0:04:44]} Be5 {[%emt 0:01:13]} 19. f4 {[%emt 0:03:23]} Qxc3 {[%emt 0:06:49]} 20. Qb5+ {[%emt 0:06:40]} Bd7 {[%emt 0:00:52]} 21. Nxg7+ {[%emt 0:01:02]} Bxg7 {[%emt 0:01:51]} 22. Qxd5 {[%emt 0:00:17]} Qc6 {[%emt 0:01:05]} 23. Qxc6 {[%emt 0:05:42]} Bxc6 {[%emt 0:00:06]} 24. Rac1 {[%emt 0:00:11]} Rc8 {[%emt 0:01:14]} 25. f5 {[%emt 0:00:32]} Bd7 {[%emt 0:02:24]} 26. Rcd1 {[%emt 0:02:09]} h5 {[%emt 0:08:11]} 27. Rd3 {[%emt 0:01:55]} Bh6 {[%emt 0:03:20]} 28. Bf6 {[%emt 0:03:22]} Rg8 {[%emt 0:00:01]} 29. Red1 {[%emt 0:01:06]} Rc7 {[%emt 0:00:16]} 30. Rh3 {[%emt 0:02:16]} Bg5 {[%emt 0:01:44]} 31. Be5 {[%emt 0:01:02]} Rc5 {[%emt 0:01:20]} 32. Rhd3 {[%emt 0:03:36]} Rxe5 {[%emt 0:01:58]} 33. Rxd7 {[%emt 0:00:26]} Re1+ {[%emt 0:00:05]} 0-1

[Event "57th Biel Festival ATO 2024"]
[Site "Biel"]
[Date "2024.07.19"]
[Round "4.12"]
[White "King, Alexander"]
[Black "Hofer, Friedrich"]
[Result "1-0"]
[ECO "D00"]
[WhiteElo "1935"]
[BlackElo "1798"]
[Annotator "ChessBase"]
[PlyCount "63"]
[EventDate "2024.07.03"]
[EventType "swiss"]
[EventCountry "SUI"]
[SourceTitle "playchess.com"]
[Source "ChessBase"]
[SourceQuality "1"]
[TimeControl "40/5400+30:1800+30"]

1. d4 {[%emt 0:04:52]} d5 {[%emt 0:00:20]} 2. Bf4 {[%emt 0:00:07]} Nf6 {[%emt 0:00:20]} 3. e3 {[%emt 0:00:05]} c5 {[%emt 0:00:46]} 4. dxc5 {[%emt 0:00:06]} Nc6 {[%emt 0:00:09]} 5. Bb5 {[%emt 0:00:01]} Bd7 {[%emt 0:00:20]} 6. c3 {[%emt 0:11:13]} e5 {[%emt 0:01:59]} 7. Bxc6 {[%emt 0:03:48]} exf4 {[%emt 0:00:34]} 8. Bxd7+ {[%emt 0:04:37]} Qxd7 {[%emt 0:00:32]} 9. exf4 {[%emt 0:00:21]} Bxc5 {[%emt 0:01:06]} 10. Ne2 {[%emt 0:07:17]} O-O {[%emt 0:02:13]} 11. Nd2 {[%emt 0:03:42]} Rad8 {[%emt 0:08:15]} 12. Nf3 {[%emt 0:05:14]} Ne4 {[%emt 0:14:49]} 13. O-O {[%emt 0:03:38]} Qb5 {[%emt 0:05:58]} 14. Qc2 {[%emt 0:02:47]} Rfe8 {[%emt 0:03:27]} 15. Ned4 {[%emt 0:03:37]} Qa6 {[%emt 0:03:27]} 16. a3 {[%emt 0:02:18]} Qh6 {[%emt 0:11:07]} 17. g3 {[%emt 0:02:48]} Qh3 {[%emt 0:02:58]} 18. Qa4 {[%emt 0:08:55]} h6 {[%emt 0:06:07]} 19. Kh1 {[%emt 0:02:22]} Qg4 {[%emt 0:01:06]} 20. Kg2 {[%emt 0:00:55]} a6 {[%emt 0:06:20]} 21. Rad1 {[%emt 0:02:31]} Qc8 {[%emt 0:01:46]} 22. Rd3 {[%emt 0:02:03]} Ba7 {[%emt 0:00:41]} 23. Qc2 {[%emt 0:05:15]} g5 {[%emt 0:04:33]} 24. fxg5 {[%emt 0:03:45]} hxg5 {[%emt 0:00:34]} 25. Qc1 {[%emt 0:02:06]} f6 {[%emt 0:02:23]} 26. h3 {[%emt 0:03:59]} Kf7 {[%emt 0:00:21]} 27. g4 {[%emt 0:02:19]} Rh8 {[%emt 0:00:39]} 28. Nf5 {[%emt 0:01:02]} Qc4 {[%emt 0:01:21]} 29. Qd1 {[%emt 0:02:29]} Bb8 {[%emt 0:00:27]} 30. Rd4 {[%emt 0:01:12]} Qc5 {[%emt 0:05:11]} 31. Qb3 {[%emt 0:01:01]} b5 {[%emt 0:00:44]} 32. Rxe4 {[%emt 0:00:51]} 1-0

[Event "57th Biel Festival ATO 2024"]
[Site "Biel"]
[Date "2024.07.19"]
[Round "4.13"]
[White "Richard, Jean-Paul"]
[Black "Schneuwly, Achim"]
[Result "0-1"]
[ECO "B48"]
[WhiteElo "1796"]
[BlackElo "1933"]
[Annotator "RC"]
[PlyCount "35"]
[EventDate "2024.07.03"]
[EventType "swiss"]
[EventCountry "SUI"]
[SourceTitle "playchess.com"]
[Source "ChessBase"]
[SourceQuality "1"]
[TimeControl "40/5400+30:1800+30"]

1. e4 {[%emt 0:01:46]} c5 {[%emt 0:00:13]} 2. Nf3 {[%emt 0:00:23]} Nc6 {[%emt 0:00:18]} 3. d4 {[%emt 0:00:32]} cxd4 {[%emt 0:00:07]} 4. Nxd4 {[%emt 0:00:07]} Qc7 {[%emt 0:00:04]} 5. Nc3 {[%emt 0:00:52]} e6 {[%emt 0:00:06]} 6. Be3 {[%emt 0:00:58]} Nf6 {[%emt 0:00:13]} 7. f3 {[%emt 0:04:35]} a6 {[%emt 0:01:13]} 8. Qd2 {[%emt 0:00:40]} Bb4 {[%emt 0:00:47]} 9. a3 {[%emt 0:08:13]} Be7 {[%emt 0:00:20]} 10. Be2 {[%emt 0:09:10]} b5 {[%emt 0:02:17]} 11. O-O {[%emt 0:02:05]} Bb7 {[%emt 0:02:10]} 12. f4 {[%emt 0:05:25]} Rc8 {[%emt 0:07:40]} 13. e5 {[%emt 0:04:18]} Nxd4 {[%emt 0:00:59]} 14. Bxd4 {[%emt 0:04:41]} Nd5 {[%emt 0:03:05]} 15. Bf3 {[%emt 0:04:33]} Nb6 {[%emt 0:11:50]} 16. Bxb7 {[%emt 0:18:55]} Nc4 {[%emt 0:04:28]} 17. Kh1 {[%emt 0:09:45]} Bc5 {[%emt 0:16:37]} 18. h3 {[%emt 0:16:11]} 0-1

[Event "57th Biel Festival ATO 2024"]
[Site "Biel"]
[Date "2024.07.19"]
[Round "4.14"]
[White "Bangerter, Daria"]
[Black "Cardoso Rodrigues, Michael"]
[Result "1-0"]
[ECO "C43"]
[WhiteElo "1931"]
[BlackElo "1796"]
[Annotator "RC"]
[PlyCount "83"]
[EventDate "2024.07.03"]
[EventType "swiss"]
[EventCountry "SUI"]
[SourceTitle "playchess.com"]
[Source "ChessBase"]
[SourceQuality "1"]
[TimeControl "40/5400+30:1800+30"]

1. e4 {[%emt 0:00:40]} e5 {[%emt 0:00:14]} 2. Nf3 {[%emt 0:00:14]} Nf6 {[%emt 0:00:09]} 3. d4 {[%emt 0:00:17]} Nxe4 {[%emt 0:00:13]} 4. Bd3 {[%emt 0:00:32]} d5 {[%emt 0:00:17]} 5. Nxe5 {[%emt 0:00:06]} Nd7 {[%emt 0:00:53]} 6. Nc3 {[%emt 0:00:28]} Bb4 {[%emt 0:00:51]} 7. O-O {[%emt 0:07:53]} Nxc3 {[%emt 0:03:25]} 8. bxc3 {[%emt 0:01:30]} Bxc3 {[%emt 0:01:09]} 9. Rb1 {[%emt 0:09:41]} Nxe5 {[%emt 0:02:05]} 10. dxe5 {[%emt 0:00:31]} O-O {[%emt 0:09:48]} 11. Bxh7+ {[%emt 0:00:57]} Kxh7 {[%emt 0:00:58]} 12. Qd3+ {[%emt 0:00:22]} Kg8 {[%emt 0:00:07]} 13. Qxc3 {[%emt 0:00:33]} b6 {[%emt 0:02:40]} 14. Qg3 {[%emt 0:07:03]} Bf5 {[%emt 0:01:39]} 15. Bh6 {[%emt 0:10:10]} Bg6 {[%emt 0:00:34]} 16. Bg5 {[%emt 0:00:38]} Qd7 {[%emt 0:00:46]} 17. Rb4 {[%emt 0:03:24]} d4 {[%emt 0:02:40]} 18. Qh4 {[%emt 0:05:40]} c5 {[%emt 0:03:17]} 19. Rb3 {[%emt 0:01:42]} d3 {[%emt 0:06:07]} 20. cxd3 {[%emt 0:04:18]} Bxd3 {[%emt 0:00:48]} 21. Qg3 {[%emt 0:10:19]} c4 {[%emt 0:07:40]} 22. Rc3 {[%emt 0:10:10]} Rac8 {[%emt 0:06:23]} 23. Bf6 {[%emt 0:05:09]} Bg6 {[%emt 0:00:40]} 24. Qh4 {[%emt 0:01:54]} Bd3 {[%emt 0:04:47]} 25. Qg5 {[%emt 0:01:35]} Bg6 {[%emt 0:01:02]} 26. Bxg7 {[%emt 0:04:58]} Kxg7 {[%emt 0:00:42]} 27. Rh3 {[%emt 0:07:29]} Qxh3 {[%emt 0:01:48]} 28. gxh3 {[%emt 0:02:41]} f6 {[%emt 0:06:24]} 29. exf6+ {[%emt 0:01:25]} Rxf6 {[%emt 0:00:03]} 30. Rd1 {[%emt 0:01:12]} Rc7 {[%emt 0:02:25]} 31. Qe5 {[%emt 0:00:50]} Rc5 {[%emt 0:03:19]} 32. Rd5 {[%emt 0:01:27]} Rcc6 {[%emt 0:05:39]} 33. Rd7+ {[%emt 0:00:27]} Bf7 {[%emt 0:01:02]} 34. Rc7 {[%emt 0:00:40]} Rce6 {[%emt 0:01:12]} 35. Qc3 {[%emt 0:00:19]} b5 {[%emt 0:02:12]} 36. a3 {[%emt 0:00:42]} a6 {[%emt 0:00:20]} 37. Kf1 {[%emt 0:00:28]} Rd6 {[%emt 0:00:32]} 38. Ke1 {[%emt 0:00:31]} Rd3 {[%emt 0:00:56]} 39. Qe5 {[%emt 0:00:20]} Rxa3 {[%emt 0:05:12]} 40. Qg5+ {[%emt 0:00:37]} Rg6 {[%emt 0:00:41]} 41. Qe7 {[%emt 0:12:38]} Rf6 {[%emt 0:00:24]} 42. Qxa3 {[%emt 0:00:35]} 1-0

[Event "57th Biel Festival ATO 2024"]
[Site "Biel"]
[Date "2024.07.19"]
[Round "4.15"]
[White "Retti, Marco"]
[Black "Ribera Caro, Joan"]
[Result "1/2-1/2"]
[ECO "B22"]
[WhiteElo "1772"]
[BlackElo "1920"]
[Annotator "RC"]
[PlyCount "91"]
[EventDate "2024.07.03"]
[EventType "swiss"]
[EventCountry "SUI"]
[SourceTitle "playchess.com"]
[Source "ChessBase"]
[SourceQuality "1"]
[TimeControl "40/5400+30:1800+30"]

1. e4 {[%emt 0:00:07]} c5 {[%emt 0:00:12]} 2. c3 {[%emt 0:00:06]} d5 {[%emt 0:02:16]} 3. exd5 {[%emt 0:00:53]} Qxd5 {[%emt 0:01:00]} 4. Nf3 {[%emt 0:00:58]} g6 {[%emt 0:00:43]} 5. d4 {[%emt 0:01:43]} cxd4 {[%emt 0:01:11]} 6. Qxd4 {[%emt 0:05:14]} Qxd4 {[%emt 0:00:38]} 7. Nxd4 {[%emt 0:00:17]} a6 {[%emt 0:09:05]} 8. Be2 {[%emt 0:05:41]} Bg7 {[%emt 0:00:51]} 9. Be3 {[%emt 0:01:15]} e5 {[%emt 0:02:31]} 10. Nb3 {[%emt 0:06:49]} Ne7 {[%emt 0:05:05]} 11. N1d2 {[%emt 0:14:45]} Nd7 {[%emt 0:09:58]} 12. Bf3 {[%emt 0:02:22]} Nf5 {[%emt 0:02:41]} 13. Nc4 {[%emt 0:07:41]} Nxe3 {[%emt 0:07:45]} 14. Nxe3 {[%emt 0:03:43]} f5 {[%emt 0:13:34]} 15. O-O {[%emt 0:03:16]} e4 {[%emt 0:04:26]} 16. Be2 {[%emt 0:00:53]} Ne5 {[%emt 0:08:40]} 17. Nd5 {[%emt 0:03:28]} Kf7 {[%emt 0:01:47]} 18. Nb6 {[%emt 0:03:06]} Rb8 {[%emt 0:00:23]} 19. Nxc8 {[%emt 0:00:16]} Rbxc8 {[%emt 0:00:09]} 20. Rad1 {[%emt 0:00:32]} Rhd8 {[%emt 0:02:51]} 21. f4 {[%emt 0:04:50]} Nd7 {[%emt 0:06:57]} 22. Rd5 {[%emt 0:00:52]} Nb6 {[%emt 0:01:43]} 23. Rxd8 {[%emt 0:04:13]} Rxd8 {[%emt 0:00:04]} 24. Na5 {[%emt 0:00:17]} Rd2 {[%emt 0:02:10]} 25. Bc4+ {[%emt 0:00:31]} Kf8 {[%emt 0:05:00]} 26. Rf2 {[%emt 0:00:16]} Nxc4 {[%emt 0:02:36]} 27. Nxc4 {[%emt 0:00:35]} Rd7 {[%emt 0:00:48]} 28. Rd2 {[%emt 0:00:42]} Rxd2 {[%emt 0:00:52]} 29. Nxd2 {[%emt 0:00:09]} Ke7 {[%emt 0:04:36]} 30. Nb1 {[%emt 0:08:07]} b5 {[%emt 0:01:16]} 31. b3 {[%emt 0:00:09]} Kd6 {[%emt 0:00:31]} 32. Kf2 {[%emt 0:00:10]} Kd5 {[%emt 0:01:10]} 33. Ke3 {[%emt 0:00:18]} Bf8 {[%emt 0:01:06]} 34. Nd2 {[%emt 0:02:21]} Bg7 {[%emt 0:00:14]} 35. c4+ {[%emt 0:00:17]} Kc5 {[%emt 0:01:49]} 36. cxb5 {[%emt 0:04:18]} axb5 {[%emt 0:00:12]} 37. a4 {[%emt 0:01:06]} bxa4 {[%emt 0:01:01]} 38. bxa4 {[%emt 0:00:06]} Kb4 {[%emt 0:00:15]} 39. Nxe4 {[%emt 0:00:19]} fxe4 {[%emt 0:00:25]} 40. Kxe4 {[%emt 0:00:07]} Kxa4 {[%emt 0:00:56]} 41. g4 {[%emt 0:30:19]} Kb5 {[%emt 0:30:57]} 42. h4 {[%emt 0:00:31]} Kc6 {[%emt 0:00:00]} 43. f5 {[%emt 0:00:00]} Bf6 {[%emt 0:00:00]} 44. g5 {[%emt 0:00:00]} Bc3 {[%emt 0:00:00]} 45. fxg6 {[%emt 0:00:00]} hxg6 {[%emt 0:00:00]} 46. h5 {[%emt 0:00:00]} 1/2-1/2

[Event "57th Biel Festival ATO 2024"]
[Site "Biel"]
[Date "2024.07.19"]
[Round "4.16"]
[White "Bangerter, Ena"]
[Black "Aegerter, Fabrice"]
[Result "1-0"]
[ECO "A80"]
[WhiteElo "1771"]
[BlackElo "1917"]
[Annotator "RC"]
[PlyCount "27"]
[EventDate "2024.07.03"]
[EventType "swiss"]
[EventCountry "SUI"]
[SourceTitle "playchess.com"]
[Source "ChessBase"]
[SourceQuality "1"]
[TimeControl "40/5400+30:1800+30"]

1. d4 {[%emt 0:00:03]} f5 {[%emt 0:00:13]} 2. Bg5 {[%emt 0:00:08]} h6 {[%emt 0:00:24]} 3. Bh4 {[%emt 0:00:05]} g5 {[%emt 0:00:20]} 4. Bg3 {[%emt 0:00:05]} Nf6 {[%emt 0:02:20]} 5. e3 {[%emt 0:00:19]} d6 {[%emt 0:02:03]} 6. h4 {[%emt 0:02:00]} Rg8 {[%emt 0:00:32]} 7. hxg5 {[%emt 0:04:53]} hxg5 {[%emt 0:01:00]} 8. Be2 {[%emt 0:10:49]} c6 {[%emt 0:14:15]} 9. Bh5+ {[%emt 0:07:22]} Kd7 {[%emt 0:00:22]} 10. Qf3 {[%emt 0:10:26]} Kc7 {[%emt 0:06:11]} 11. Bf7 {[%emt 0:05:41]} Rg7 {[%emt 0:01:31]} 12. Bb3 {[%emt 0:06:22]} Qe8 {[%emt 0:07:57]} 13. Bh2 {[%emt 0:32:39]} Rh7 {[%emt 0:49:13]} 14. Ne2 {[%emt 0:12:28]} 1-0

[Event "57th Biel Festival ATO 2024"]
[Site "Biel"]
[Date "2024.07.19"]
[Round "4.17"]
[White "Leuenberger, Urs"]
[Black "Pantillon, Patrick Andre"]
[Result "1-0"]
[ECO "B04"]
[WhiteElo "1903"]
[BlackElo "1782"]
[Annotator "RC"]
[PlyCount "67"]
[EventDate "2024.07.03"]
[EventType "swiss"]
[EventCountry "SUI"]
[SourceTitle "playchess.com"]
[Source "ChessBase"]
[SourceQuality "1"]
[TimeControl "40/5400+30:1800+30"]

1. e4 {[%emt 0:00:14]} Nf6 {[%emt 0:00:18]} 2. e5 {[%emt 0:00:36]} Nd5 {[%emt 0:00:32]} 3. c4 {[%emt 0:00:23]} Nb6 {[%emt 0:00:20]} 4. d4 {[%emt 0:00:40]} d6 {[%emt 0:02:38]} 5. exd6 {[%emt 0:04:45]} cxd6 {[%emt 0:00:35]} 6. Nf3 {[%emt 0:00:39]} Nc6 {[%emt 0:02:48]} 7. Be2 {[%emt 0:08:25]} e6 {[%emt 0:03:23]} 8. O-O {[%emt 0:00:32]} Be7 {[%emt 0:00:40]} 9. Nc3 {[%emt 0:01:10]} O-O {[%emt 0:01:01]} 10. Be3 {[%emt 0:04:34]} d5 {[%emt 0:08:12]} 11. c5 {[%emt 0:01:05]} Nd7 {[%emt 0:01:29]} 12. Qd2 {[%emt 0:03:47]} a6 {[%emt 0:07:44]} 13. Rab1 {[%emt 0:01:55]} f5 {[%emt 0:03:32]} 14. b4 {[%emt 0:08:48]} Nf6 {[%emt 0:03:10]} 15. Rfd1 {[%emt 0:03:45]} Ne4 {[%emt 0:09:34]} 16. Nxe4 {[%emt 0:07:05]} fxe4 {[%emt 0:00:53]} 17. Ne5 {[%emt 0:01:57]} Nxe5 {[%emt 0:00:40]} 18. dxe5 {[%emt 0:00:12]} Qc7 {[%emt 0:04:27]} 19. Bd4 {[%emt 0:02:30]} Bd7 {[%emt 0:02:32]} 20. Bg4 {[%emt 0:04:48]} Rf7 {[%emt 0:06:31]} 21. Rdc1 {[%emt 0:03:56]} Raf8 {[%emt 0:02:06]} 22. a4 {[%emt 0:00:27]} Qd8 {[%emt 0:02:25]} 23. Be3 {[%emt 0:09:27]} h6 {[%emt 0:09:38]} 24. b5 {[%emt 0:02:19]} Bg5 {[%emt 0:03:07]} 25. Bxg5 {[%emt 0:00:24]} hxg5 {[%emt 0:03:09]} 26. Rf1 {[%emt 0:04:45]} Rf4 {[%emt 0:00:31]} 27. h3 {[%emt 0:08:26]} axb5 {[%emt 0:04:39]} 28. axb5 {[%emt 0:00:20]} Qe7 {[%emt 0:01:19]} 29. Qe3 {[%emt 0:02:26]} g6 {[%emt 0:07:21]} 30. Rb2 {[%emt 0:04:48]} Kg7 {[%emt 0:02:03]} 31. Ra1 {[%emt 0:00:26]} Kh6 {[%emt 0:04:10]} 32. Ra7 {[%emt 0:00:40]} Bxb5 {[%emt 0:01:16]} 33. Rxb5 {[%emt 0:00:39]} Rxf2 {[%emt 0:00:47]} 34. Rbxb7 {[%emt 0:00:46]} 1-0

[Event "57th Biel Festival ATO 2024"]
[Site "Biel"]
[Date "2024.07.19"]
[Round "4.18"]
[White "Boillat, Maxime"]
[Black "Voet, Dirk"]
[Result "1-0"]
[ECO "B06"]
[WhiteElo "1768"]
[BlackElo "1869"]
[Annotator "NA RC"]
[PlyCount "43"]
[EventDate "2024.07.03"]
[EventType "swiss"]
[EventCountry "SUI"]
[SourceTitle "playchess.com"]
[Source "ChessBase"]
[SourceQuality "1"]
[TimeControl "40/5400+30:1800+30"]

1. e4 {[%emt 0:00:09]} g6 {[%emt 0:05:29]} 2. d4 {[%emt 0:00:45]} Bg7 {[%emt 0:00:22]} 3. Nc3 {[%emt 0:00:37]} d6 {[%emt 0:00:15]} 4. h4 {[%emt 0:00:10]} b6 {[%emt 0:00:06]} 5. Be2 {[%emt 0:02:36]} h5 {[%emt 0:00:35]} 6. Nf3 {[%emt 0:01:05]} Bb7 {[%emt 0:00:14]} 7. Ng5 {[%emt 0:00:37]} Nd7 {[%emt 0:07:23]} 8. Bc4 {[%emt 0:09:52]} Nh6 {[%emt 0:02:12]} 9. Bxf7+ {[%emt 0:00:57]} Nxf7 {[%emt 0:00:12]} 10. Ne6 {[%emt 0:00:13]} Qc8 {[%emt 0:00:03]} 11. Nxg7+ {[%emt 0:00:34]} Kf8 {[%emt 0:00:12]} 12. Ne6+ {[%emt 0:00:19]} Kg8 {[%emt 0:00:04]} 13. Ng5 {[%emt 0:04:18]} Nf6 {[%emt 0:00:22]} 14. f3 {[%emt 0:05:00]} Nd8 {[%emt 0:00:11]} 15. Be3 {[%emt 0:13:49]} e5 {[%emt 0:02:22]} 16. Qd2 {[%emt 0:01:59]} Kg7 {[%emt 0:01:06]} 17. dxe5 {[%emt 0:03:34]} dxe5 {[%emt 0:00:05]} 18. Nd5 {[%emt 0:03:53]} Nc6 {[%emt 0:00:17]} 19. O-O-O {[%emt 0:02:23]} Rd8 {[%emt 0:04:36]} 20. Qc3 {[%emt 0:01:07]} Re8 {[%emt 0:02:43]} 21. Nxf6 {[%emt 0:05:11]} Kxf6 {[%emt 0:00:07]} 22. g4 {[%emt 0:00:18]} 1-0